bitfinex-derivatives/quotes_ETHF0:USTF0_20210402
["timestamp","ask_amount","ask_price","bid_price","bid_amount"]
[1617365588060,31.90875,1999.1,1999.0,144.83695]
[1617365588562,32.91535,1999.1,1999.0,144.83695]
[1617365589063,31.90875,1999.1,1999.0,144.83695]
[1617365589263,1.90875,1999.1,1999.0,142.84095]
[1617365589462,1.90875,1999.1,1999.0,139.934]
[1617365591266,31.90875,1999.1,1999.0,139.934]
[1617365591467,1.90875,1999.1,1999.0,139.934]
[1617365592268,3.90875,1999.1,1999.0,139.934]
[1617365592469,33.90875,1999.1,1999.0,139.934]
[1617365592669,33.90875,1999.1,1999.0,135.973]
[1617365593468,32.91055,1999.1,1999.0,135.973]
[1617365595670,32.91055,1999.1,1999.0,134.207]
[1617365595870,32.91055,1999.1,1999.0,132.8247]
[1617365596971,32.91055,1999.1,1999.0,132.0947]
[1617365597171,34.31905,1999.1,1999.0,130.8297]
[1617365598471,32.91055,1999.1,1999.0,130.8297]
[1617365598872,34.14695,1999.1,1999.0,129.3737]
[1617365599272,34.14695,1999.1,1999.0,127.3937]
[1617365600376,33.14875,1999.1,1999.0,77.8416]
[1617365600775,33.14875,1999.1,1999.0,77.7402]
[1617365600977,33.17754209,1999.1,1999.0,77.7402]
[1617365601177,33.17754209,1999.1,1999.0,77.5617]
[1617365601377,33.14875,1999.1,1999.0,40.4765]
[1617365601777,33.17754158,1999.1,1999.0,40.4765]
[1617365601979,36.08449158,1999.1,1999.0,40.4765]
[1617365602179,36.0557,1999.1,1999.0,40.4765]
[1617365602777,36.0557,1999.1,1999.0,34.7083]
[1617365602977,36.0557,1999.1,1999.0,34.5983]
[1617365603178,36.0557,1999.1,1999.0,30.9918]
[1617365603379,36.0557,1999.1,1999.0,30.586]
[1617365603577,36.0557,1999.1,1999.0,29.546]
[1617365603979,36.0557,1999.1,1999.0,29.4385]
[1617365604579,36.0557,1999.1,1999.0,27.9605]
[1617365604779,36.0557,1999.1,1999.0,27.277]
[1617365604980,34.8193,1999.1,1999.0,25.9051]
[1617365606482,34.8193,1999.1,1999.0,25.4037]
[1617365607491,33.8211,1999.1,1999.0,25.4037]
[1617365607684,33.8211,1999.1,1999.0,23.819]
[1617365608084,33.8211,1999.1,1999.0,23.0683]
[1617365608483,33.8211,1999.1,1999.0,22.5631]
[1617365608684,33.8211,1999.1,1999.0,20.05924406]
[1617365608884,33.8211,1999.1,1999.0,19.85024406]
[1617365609085,33.8211,1999.1,1999.0,19.79134406]
[1617365609284,33.8211,1999.1,1999.0,16.74884406]
[1617365609684,33.8211,1999.1,1999.0,16.12364406]
[1617365610086,35.1223,1999.1,1999.0,14.55864406]
[1617365610486,35.1223,1999.1,1999.0,13.61264406]
[1617365610686,35.1223,1999.1,1999.0,12.89094406]
[1617365610888,35.1223,1999.1,1999.0,11.88394406]
[1617365611689,33.8211,1999.1,1999.0,11.88394406]
[1617365612589,33.8211,1999.1,1999.0,11.82964406]
[1617365614093,33.8211,1999.1,1999.0,10.97364406]
[1617365614292,33.8211,1999.1,1999.0,10.57634406]
[1617365614692,35.5531,1999.1,1999.0,10.22854406]
[1617365615091,35.5531,1999.1,1999.0,10.12564406]
[1617365615692,35.5531,1999.1,1999.0,0.53844763]
[1617365615891,35.5531,1999.1,1999.0,0.35844763]
[1617365616095,35.5531,1999.1,1997.9,26.56234763]
[1617365616494,57.406,1998.0,1997.9,26.56234763]
[1617365616695,59.2958,1998.0,1997.9,26.56234763]
[1617365616893,59.2958,1998.0,1997.9,26.36234763]
[1617365617293,59.2958,1998.0,1997.9,26.18334763]
[1617365617594,60.2869,1998.0,1997.9,26.18334763]
[1617365618094,62.20275,1998.0,1997.9,26.18334763]
[1617365619396,92.20275,1998.0,1997.9,26.18334763]
[1617365620399,93.1169,1998.0,1997.9,25.04424763]
[1617365620600,92.20275,1998.0,1997.9,25.04424763]
[1617365621104,92.20275,1998.0,1997.9,23.80584763]
[1617365621303,34.79675,1998.0,1997.9,23.80584763]
[1617365621500,34.79675,1998.0,1997.9,22.80584763]
[1617365622500,36.79675,1998.0,1997.9,22.80584763]
[1617365623101,39.30174747,1998.0,1997.9,22.80584763]
[1617365623501,36.30104747,1998.0,1997.9,22.80584763]
[1617365624703,33.79605,1998.0,1997.9,22.80584763]
[1617365625903,35.79605,1998.0,1997.9,22.80584763]
[1617365626305,33.79605,1998.0,1997.9,22.80584763]
[1617365626705,35.79605,1998.0,1997.9,22.80584763]
[1617365628510,33.79605,1998.0,1997.9,22.80584763]
[1617365629115,34.90695,1998.0,1997.9,22.80584763]
[1617365629911,32.90695,1998.0,1997.9,22.80584763]
[1617365630511,31.90625,1998.0,1997.9,22.80584763]
[1617365630911,31.90625,1998.0,1996.5,2.90695]
[1617365631112,77.7491,1997.5,1996.5,2.90695]
[1617365631313,2.0,1997.8,1996.5,2.90695]
[1617365631512,77.8419,1996.5,1996.1,13.7723]
[1617365631715,79.7646,1996.5,1996.1,13.7723]
[1617365632113,30.0,1996.4,1996.1,13.7723]
[1617365632314,32.90695,1996.2,1996.1,13.7723]
[1617365633116,2.90695,1996.2,1996.1,13.7723]
[1617365633313,2.90695,1996.2,1993.2,57.8528]
[1617365633715,69.4413,1995.2,1994.2,0.02]
[1617365634315,69.4413,1995.2,1995.1,4.90695]
[1617365634516,1.9227,1996.5,1995.1,4.90695]
[1617365634714,77.2658,1996.3,1995.1,4.90695]
[1617365635215,77.2658,1996.3,1995.2,14.7778]
[1617365635416,77.2658,1996.3,1995.3,2.0]
[1617365636317,77.2658,1996.3,1995.2,14.7778]
[1617365637319,77.2658,1996.3,1995.3,2.0]
[1617365637520,76.2651,1996.3,1995.3,2.0]
[1617365637723,30.0,1996.2,1995.2,14.7778]
[1617365638327,4.38255,1995.3,1995.2,14.7778]
[1617365638523,34.38255,1995.3,1995.2,14.7778]
[1617365641526,4.38255,1995.3,1995.2,14.7778]
[1617365641727,2.90695,1995.3,1995.2,14.7778]
[1617365642527,67.4091,1995.2,1994.9,2.90695]
[1617365642727,67.4091,1995.2,1993.3,2.0]
[1617365642927,67.4091,1995.2,1993.3,32.0]
[1617365643129,67.4091,1995.2,1993.3,2.0]
[1617365643929,67.4091,1995.2,1993.4,30.0]
[1617365644128,67.4091,1995.2,1993.5,2.0]
[1617365644329,67.4091,1995.2,1994.3,2.90695]
[1617365644529,66.4084,1995.2,1994.3,2.90695]
[1617365644730,66.3884,1995.2,1994.3,2.90695]
[1617365644928,30.0,1995.1,1994.3,2.90695]
[1617365645931,66.3884,1995.2,1994.3,2.90695]
[1617365646130,32.0115,1995.4,1994.3,2.90695]
[1617365646334,2.90695,1994.4,1994.3,2.90695]
[1617365646729,62.4376,1995.5,1994.3,2.90695]
[1617365647030,92.4376,1995.5,1994.3,2.90695]
[1617365647231,62.4376,1995.5,1994.3,2.90695]
[1617365647831,62.4376,1995.5,1994.4,2.0]
[1617365648031,62.4376,1995.5,1994.3,2.90695]
[1617365648230,62.4376,1995.5,1994.7,2.90695]
[1617365648831,62.4376,1995.5,1994.7,4.34895]
[1617365649031,0.01410987,1998.4,1994.8,2.0]
[1617365649233,80.6189,1996.4,1994.8,2.0]
[1617365649433,80.6189,1996.4,1995.0,2.0]
[1617365649833,2.50823957,1995.4,1994.9,14.8415]
[1617365650633,2.50823957,1995.4,1995.2,4.28725]
[1617365650832,2.50823957,1995.4,1995.3,2.0]
[1617365651633,80.6189,1996.4,1995.3,2.0]
[1617365652534,80.6189,1996.4,1996.1,2.90695]
[1617365653235,80.6189,1996.4,1995.9,1.8471]
[1617365654335,82.0303,1996.4,1995.0,16.4781]
[1617365654536,112.0303,1996.4,1995.4,2.90695]
[1617365654937,82.0303,1996.4,1995.0,14.4781]
[1617365656536,2.90695,1995.1,1995.0,14.4781]
[1617365656737,1.9831,1995.5,1995.0,14.4781]
[1617365658139,82.0303,1996.4,1995.0,14.4781]
[1617365658541,111.0296,1996.4,1995.0,14.4781]
[1617365658739,2.90695,1995.1,1995.0,17.38505]
[1617365658940,2.90695,1995.1,1995.0,14.4781]
[1617365659141,69.12205,1995.1,1995.0,14.4781]
[1617365663846,100.49035,1995.1,1995.0,14.4781]
[1617365664246,100.49035,1995.1,1994.9,14.8415]
[1617365664446,100.49035,1995.1,1993.0,2.0]
[1617365664647,97.5834,1995.1,1994.1,2.90695]
[1617365664847,2.0,1995.0,1994.1,2.90695]
[1617365665649,0.9993,1995.0,1994.1,2.90695]
[1617365665950,0.9993,1995.0,1993.1,14.7148]
[1617365666349,75.2947,1994.4,1993.1,14.7148]
[1617365666549,76.9895,1994.4,1993.1,14.7148]
[1617365666750,76.9895,1994.4,1993.5,2.90695]
[1617365666951,76.9895,1994.4,1993.6,2.0]
[1617365667650,75.2947,1994.4,1993.5,2.90695]
[1617365668251,30.0,1994.3,1993.5,2.90695]
[1617365668450,75.2947,1994.4,1993.5,2.90695]
[1617365668651,2.90695,1993.6,1993.5,2.90695]
[1617365670053,4.31915,1993.6,1993.5,2.90695]
[1617365671053,2.90695,1993.6,1993.5,2.90695]
[1617365671655,75.2947,1994.4,1993.5,2.90695]
[1617365672655,74.294,1994.4,1993.7,2.90695]
[1617365672858,74.294,1994.4,1993.7,4.90695]
[1617365673056,74.294,1994.4,1993.7,6.42835]
[1617365673654,2.0,1996.2,1993.7,6.42835]
[1617365674056,2.50887194,1994.9,1993.7,6.42835]
[1617365674660,2.50887194,1994.9,1994.3,2.90695]
[1617365675259,2.50887194,1994.9,1994.3,4.51325]
[1617365675461,2.50887194,1994.9,1994.4,2.0]
[1617365676061,82.0483,1995.8,1994.4,2.0]
[1617365676662,82.0483,1995.8,1995.4,2.90695]
[1617365676862,82.0483,1995.8,1995.4,4.56565]
[1617365677065,82.0483,1995.8,1995.4,1.6587]
[1617365678269,30.0,1996.3,1995.4,1.6587]
[1617365678464,79.7438,1996.4,1995.4,1.6587]
[1617365678664,2.90695,1995.7,1995.4,4.56565]
[1617365678864,2.90695,1995.7,1995.5,2.0]
[1617365679064,2.90695,1995.7,1995.4,4.56565]
[1617365679564,1.90625,1995.7,1995.4,4.56565]
[1617365679865,1.90625,1995.7,1995.5,2.0]
[1617365680769,2.90695,1995.8,1995.6,2.90695]
[1617365680967,2.90695,1995.8,1995.7,2.0]
[1617365681167,2.90695,1995.8,1995.6,2.90695]
[1617365681368,32.90695,1995.8,1995.6,2.90695]
[1617365681569,2.90695,1995.8,1994.6,13.8992]
[1617365681769,67.7235,1995.3,1994.6,13.8992]
[1617365682369,67.7235,1995.3,1994.7,2.0]
[1617365682770,67.7235,1995.3,1995.2,4.19345]
[1617365684071,31.0112,1996.7,1995.2,4.19345]
[1617365684273,81.6652,1996.6,1995.2,4.19345]
[1617365684672,2.90695,1995.3,1994.9,2.90695]
[1617365685273,0.9932,1996.2,1994.9,2.90695]
[1617365685472,81.6652,1996.6,1995.0,2.0]
[1617365685672,111.6652,1996.6,1995.0,3.319]
[1617365686673,2.90695,1995.4,1995.2,2.90695]
[1617365687073,68.2061,1995.6,1995.2,2.90695]
[1617365688584,67.2046,1995.6,1995.2,2.90695]
[1617365688790,67.2046,1995.6,1995.0,3.319]
[1617365688791,67.2046,1995.6,1995.5,4.43095]
[1617365690179,2.50640027,1996.9,1995.5,4.43095]
[1617365690379,66.2717,1995.9,1995.5,4.43095]
[1617365690780,2.90695,1995.6,1995.5,4.43095]
[1617365691981,2.90695,1995.6,1995.5,6.43095]
[1617365692180,66.2717,1995.9,1995.5,6.43095]
[1617365692781,66.2717,1995.9,1995.8,2.90695]
[1617365693782,0.01426321,1997.2,1995.8,2.90695]
[1617365694183,0.01428179,1997.1,1995.8,2.90695]
[1617365694383,0.01428179,1997.1,1995.8,4.90695]
[1617365694584,82.8265,1997.3,1995.8,2.90695]
[1617365694787,83.8377,1997.3,1996.7,2.90695]
[1617365694983,82.8265,1997.3,1996.7,2.90695]
[1617365695584,81.825,1997.3,1996.7,2.90695]
[1617365696786,2.50609296,1997.1,1996.9,2.90695]
[1617365698790,2.90695,1997.0,1996.9,2.90695]
[1617365699590,2.90695,1997.0,1996.9,4.90695]
[1617365700792,2.90695,1997.2,1996.9,4.90695]
[1617365700992,2.90695,1997.2,1996.9,6.87585]
[1617365702122,78.3181,1997.9,1996.9,6.87585]
[1617365702293,0.0143093,1998.1,1996.9,36.87585]
[1617365702492,0.0286186,1998.2,1996.9,36.87585]
[1617365702493,0.01432138,1998.2,1997.1,2.0]
[1617365702693,0.53088754,1998.9,1997.1,2.0]
[1617365702893,0.01433065,1998.4,1997.9,4.44945]
[1617365703093,0.05732632,1998.7,1997.9,4.44945]
[1617365703996,0.05731255,1998.6,1997.9,4.44945]
[1617365704195,0.05732771,1998.7,1997.9,4.44945]
[1617365704597,0.05732771,1998.7,1997.9,6.44945]
[1617365704797,0.05748977,1998.5,1998.2,2.90695]
[1617365705198,2.56164553,1998.7,1998.2,2.90695]
[1617365705596,0.05751576,1998.6,1998.2,2.90695]
[1617365705997,2.50413182,1998.7,1998.2,2.90695]
[1617365706598,0.05754591,1998.9,1998.2,2.90695]
[1617365706799,0.05754591,1998.9,1998.8,2.90695]
[1617365706998,0.05754591,1998.9,1998.8,4.14625]
[1617365707400,0.05755637,1999.0,1998.8,1.2393]
[1617365708001,0.05754897,1998.9,1998.8,1.2393]
[1617365708401,0.05755789,1999.0,1998.8,1.2393]
[1617365708801,0.05755789,1999.0,1998.9,2.90695]
[1617365709001,2.96452252,1999.1,1998.9,2.90695]
[1617365709402,2.90695,1999.1,1998.9,2.90695]
[1617365709601,1.90545,1999.1,1998.9,2.90695]
[1617365709802,1.96301932,1999.1,1998.9,2.90695]
[1617365710402,0.05755983,1999.0,1998.9,2.90695]
[1617365711225,1.90545,1999.1,1998.0,14.757]
[1617365712308,1.90545,1999.1,1998.0,16.757]
[1617365712908,60.7329,1999.2,1998.5,4.87835]
[1617365713810,90.7329,1999.2,1998.5,1.9714]
[1617365714010,90.7329,1999.2,1998.0,14.757]
[1617365714011,91.78641195,1999.2,1998.0,14.757]
[1617365714210,93.23741195,1999.2,1998.0,14.757]
[1617365714414,0.05738216,1999.0,1998.0,14.757]
[1617365714812,0.05736815,1998.9,1998.0,14.757]
[1617365715011,2.90695,1998.1,1998.0,14.757]
[1617365716613,1.90545,1998.1,1998.0,14.757]
[1617365716814,75.50415,1998.1,1998.0,14.757]
[1617365717213,77.05275,1998.1,1998.0,14.757]
[1617365717613,107.05275,1998.1,1998.0,14.757]
[1617365717815,77.05275,1998.1,1998.0,14.757]
[1617365718522,75.50415,1998.1,1998.0,14.757]
[1617365718913,105.50415,1998.1,1998.0,14.757]
[1617365719514,105.56147924,1998.1,1998.0,14.757]
[1617365719715,105.56147924,1998.1,1994.6,82.9746]
[1617365719913,2.0,1998.0,1996.0,14.411]
[1617365720113,71.3686,1997.1,1996.0,14.411]
[1617365720714,30.0,1997.0,1996.0,14.411]
[1617365720914,30.0,1997.0,1996.1,2.90695]
[1617365721513,30.0,1997.0,1996.0,14.411]
[1617365723020,32.90695,1997.0,1996.7,2.90695]
[1617365723420,32.90695,1997.0,1996.0,14.411]
[1617365723620,31.90545,1997.0,1996.0,14.411]
[1617365724022,2.90695,1997.0,1996.0,14.411]
[1617365725023,2.90695,1996.1,1996.0,17.31795]
[1617365725626,60.816,1996.5,1996.0,17.31795]
[1617365726927,60.816,1996.5,1996.4,2.90695]
[1617365727127,60.816,1996.5,1996.4,4.82555]
[1617365727329,2.90695,1996.6,1996.4,4.82555]
[1617365728128,2.50581793,1997.4,1996.5,2.0]
[1617365728529,2.50581793,1997.4,1996.6,30.0]
[1617365728731,2.50581793,1997.4,1996.5,2.0]
[1617365728931,2.50581793,1997.4,1997.3,2.90695]
[1617365729132,2.50581793,1997.4,1997.3,4.87875]
[1617365729730,65.115,1997.7,1997.3,4.87875]
[1617365730530,64.1135,1997.7,1997.3,4.87875]
[1617365731033,2.90695,1997.5,1997.3,4.87875]
[1617365737738,1.90545,1997.5,1997.3,4.87875]
[1617365737936,78.4517,1998.4,1997.3,4.87875]
[1617365739038,78.4517,1998.4,1998.2,2.90695]
[1617365739238,78.4517,1998.4,1998.2,4.67405]
[1617365741039,2.90695,1998.3,1998.2,4.67405]
[1617365743539,0.0574404,1999.0,1998.2,4.67405]
[1617365743741,6.32131581,2000.9,1998.2,4.67405]
[1617365743742,2.62844132,1999.3,1998.2,4.67405]
[1617365743942,2.50349064,1999.2,1998.2,4.67405]
[1617365744642,1.50199064,1999.2,1998.2,4.67405]
[1617365745041,1.50199064,1999.2,1999.1,2.90695]
[1617365745243,1.50199064,1999.2,1999.1,4.33915]
[1617365745643,69.8323475,1999.7,1999.1,4.33915]
[1617365746246,13.0574475,1999.7,1999.1,4.33915]
[1617365746647,13.0,1999.7,1999.1,4.33915]
[1617365747047,13.0,1999.7,1999.6,2.90695]
[1617365747247,13.0,1999.7,1999.6,4.19825]
[1617365749051,15.90695,1999.7,1999.6,4.19825]
[1617365750953,13.0,1999.7,1999.6,4.19825]
[1617365751753,11.9985,1999.7,1999.6,4.19825]
[1617365752903,11.9985,1999.7,1999.6,2.90695]
[1617365753057,12.9867,1999.7,1999.0,2.90695]
[1617365753857,14.9867,1999.7,1999.0,2.90695]
[1617365754258,12.9867,1999.7,1999.0,2.90695]
[1617365754659,11.9985,1999.7,1999.0,2.90695]
[1617365755160,13.9985,1999.7,1999.0,2.90695]
[1617365755360,11.9985,1999.7,1999.0,2.90695]
[1617365756561,12.05603206,1999.7,1999.0,2.90695]
[1617365757163,12.05603206,1999.7,1999.4,2.90695]
[1617365758163,2.0,1999.6,1999.4,2.90695]
[1617365758365,12.05603206,1999.7,1998.3,13.6862]
[1617365758966,1.47532016,1999.6,1998.3,13.6862]
[1617365759166,1.47532016,1999.6,1998.8,2.90695]
[1617365759366,0.05749737,1999.4,1998.8,2.90695]
[1617365760568,0.05749879,1999.5,1998.8,4.88045]
[1617365761069,0.05751492,1999.6,1998.8,4.88045]
[1617365761268,2.90695,1998.9,1998.8,4.88045]
[1617365761468,0.05751492,1999.6,1998.8,4.88045]
[1617365761668,0.05750885,1999.5,1998.8,4.88045]
[1617365763270,2.90695,1998.9,1998.8,4.88045]
[1617365764071,0.05750885,1999.5,1998.8,4.88045]
[1617365765076,0.05750897,1999.6,1998.8,4.88045]
[1617365765277,12.05602044,1999.7,1999.5,4.40285]
[1617365765683,11.9985,1999.7,1999.5,4.40285]
[1617365766682,10.9989,1999.7,1999.5,4.40285]
[1617365768505,10.9989,1999.7,1999.5,34.40285]
[1617365770082,10.9989,1999.7,1999.5,4.40285]
[1617365770484,10.9989,1999.7,1999.6,30.0]
[1617365770883,10.9989,1999.7,1999.6,99.5009]
[1617365771486,9.6627,1999.7,1999.6,99.5009]
[1617365771685,7.4146,1999.7,1999.6,99.5009]
[1617365771888,0.69249837,2001.1,1999.6,99.5009]
[1617365772285,0.69309313,2001.5,1999.6,99.5009]
[1617365772689,0.69319714,2001.6,1999.8,30.0]
[1617365772889,0.69319714,2001.6,1999.8,32.0]
[1617365773291,0.69319714,2001.6,2001.5,2.90695]
[1617365773489,0.9242088,2001.7,2001.5,2.90695]
[1617365773689,0.80725881,2001.8,2001.5,2.90695]
[1617365774091,32.0,2001.9,2001.5,2.90695]
[1617365775291,2.90695,2001.6,2001.5,2.90695]
[1617365777895,34.90695,2001.6,2000.2,1.3321]
[1617365778094,71.5153,2001.4,1999.5,1.4959]
[1617365778294,74.5168,2001.4,1999.3,71.5747]
[1617365778894,30.0,2001.3,1999.3,71.5747]
[1617365779094,2.0,2001.2,1999.3,71.5747]
[1617365779494,72.5168,2001.4,2000.7,2.90695]
[1617365779495,1.0015,2001.4,2000.7,2.90695]
[1617365779894,2.69064639,2001.9,2000.7,2.90695]
[1617365780295,2.0,2001.9,2000.7,2.90695]
[1617365780495,32.0,2001.9,2000.7,2.90695]
[1617365780696,31.0004,2001.9,2000.7,2.90695]
[1617365781496,31.0004,2001.9,2001.5,2.90695]
[1617365781697,31.69103064,2001.9,2001.5,2.90695]
[1617365781999,31.69103064,2001.9,2000.5,1.6667]
[1617365782196,31.69103064,2001.9,1999.4,13.9148]
[1617365782397,0.69042989,2001.7,1999.8,73.4843]
[1617365783398,0.69042989,2001.7,2000.8,2.90695]
[1617365784900,0.6905653,2001.8,2000.8,2.90695]
[1617365785299,105.0681,2001.9,2000.8,2.90695]
[1617365785498,105.0681,2001.9,2001.4,2.90695]
[1617365785699,105.0681,2001.9,2001.3,1.6659]
[1617365786800,105.0681,2001.9,2000.4,1.9958]
[1617365787200,105.0681,2001.9,1999.9,1.7821]
[1617365787401,105.0681,2001.9,2000.8,2.90695]
[1617365787800,104.0685,2001.9,2000.8,2.90695]
[1617365789404,2.90695,2000.9,2000.8,2.90695]
[1617365790609,0.9921,2001.3,2000.8,2.90695]
[1617365790809,104.0685,2001.9,2000.8,2.90695]
[1617365791009,104.0677,2001.9,2000.8,2.90695]
[1617365791410,104.0677,2001.9,2001.3,2.90695]
[1617365791911,2.0,2001.8,2001.3,2.90695]
[1617365792112,2.0,2001.8,1999.9,1.7821]
[1617365792319,2.0,2001.8,1999.8,73.4843]
[1617365793314,30.0,2001.7,1999.8,73.4843]
[1617365793514,30.0,2001.7,2000.9,2.90695]
[1617365793916,32.0,2001.7,2000.9,2.90695]
[1617365794114,32.0,2001.7,1999.8,74.9466]
[1617365794314,30.0,2001.7,1999.8,74.9466]
[1617365794716,1.0004,2001.8,1999.8,74.9466]
[1617365794916,1.0004,2001.8,1999.8,76.9466]
[1617365795315,104.0677,2001.9,1999.8,76.9466]
[1617365795515,104.0677,2001.9,2001.3,2.90695]
[1617365797618,2.90695,2001.4,2001.3,2.90695]
[1617365797818,3.90575,2001.4,2001.3,2.90695]
[1617365801421,2.90695,2001.4,2001.3,2.90695]
[1617365801621,3.0053,2002.2,2001.3,2.90695]
[1617365801821,70.0863,2002.3,2001.3,4.42065]
[1617365802225,30.0,2002.2,2001.3,4.42065]
[1617365803527,30.0,2002.2,2002.1,2.90695]
[1617365804528,32.0,2002.2,2002.1,2.90695]
[1617365805731,32.90695,2002.2,2002.1,1.91465]
[1617365805931,32.90695,2002.2,2000.9,28.937]
[1617365806131,2.90695,2002.2,2000.9,28.937]
[1617365806933,32.90695,2002.2,2000.9,28.937]
[1617365807736,30.0,2002.2,2002.0,2.90695]
[1617365807936,70.0863,2002.3,2002.0,2.90695]
[1617365808737,69.0867,2002.3,2002.0,2.90695]
[1617365809642,2.90695,2002.1,2002.0,2.90695]
[1617365809840,3.90935,2002.1,2002.0,2.90695]
[1617365812245,2.90695,2002.1,2002.0,2.90695]
[1617365813145,2.90695,2002.1,2000.9,28.937]
[1617365813344,3.91625,2002.1,2000.9,28.937]
[1617365813744,3.91625,2002.1,2001.9,2.90695]
[1617365815045,33.91625,2002.1,2000.9,28.937]
[1617365815445,75.3016,2001.6,2000.9,28.6846]
[1617365815648,75.3016,2001.6,2000.9,13.9398]
[1617365815845,1.90735,2001.4,2001.0,2.90695]
[1617365816047,2.89515,2001.4,2001.0,2.90695]
[1617365816645,32.89515,2001.4,2000.9,13.9398]
[1617365817046,32.89515,2001.4,1999.7,14.5834]
[1617365817648,72.4406,2000.8,1999.7,14.5834]
[1617365817847,74.833,2000.8,2000.7,2.90695]
[1617365818348,104.833,2000.8,2000.7,2.90695]
[1617365818549,74.833,2000.8,2000.7,2.90695]
[1617365819348,1.008,2000.8,2000.7,2.90695]
[1617365822451,80.4596,2001.2,2000.7,2.90695]
[1617365822851,79.46,2001.2,2000.7,2.90695]
[1617365823553,79.92262499,2001.2,2000.7,2.90695]
[1617365823758,79.92262499,2001.2,2001.1,2.90695]
[1617365823954,79.46,2001.2,2001.1,2.90695]
[1617365824353,109.46,2001.2,2001.1,2.90695]
[1617365824553,79.46,2001.2,2001.1,2.90695]
[1617365824754,111.46,2001.2,2001.1,1.91395]
[1617365824956,113.4163,2001.2,1999.8,74.6124]
[1617365825155,0.46240612,2001.0,1999.8,74.6124]
[1617365825757,0.4624232,2001.1,2000.8,2.90695]
[1617365827159,0.46243252,2001.0,2000.8,2.90695]
[1617365827759,2.90695,2000.9,2000.8,1.91895]
[1617365827960,3.89515,2000.9,2000.8,1.91895]
[1617365828559,0.9882,2000.9,2000.8,1.91895]
[1617365829761,79.91133187,2001.2,2000.8,1.91895]
[1617365830863,30.46304017,2001.1,2000.8,1.91895]
[1617365831263,30.0,2001.1,1999.8,74.6124]
[1617365831464,30.46299413,2001.1,1999.8,74.6124]
[1617365831763,30.46299413,2001.1,2000.5,2.90695]
[1617365831964,0.46299413,2001.1,2000.5,2.90695]
[1617365832564,0.46299413,2001.1,1999.8,74.6124]
[1617365832765,0.46283688,2000.9,1999.8,74.6124]
[1617365832965,3.17073688,2000.9,1999.8,74.6124]
[1617365833567,0.46488751,2000.1,1999.8,74.6124]
[1617365833769,4.37523751,2000.1,2000.0,2.90695]
[1617365834170,4.37523751,2000.1,2000.0,1.19935]
[1617365834582,4.37523751,2000.1,1999.0,66.6185]
[1617365834800,4.37523751,2000.1,1998.4,14.505]
[1617365834801,35.20305,2000.1,1998.4,14.505]
[1617365834986,70.5016,1999.7,1998.4,14.505]
[1617365835186,71.5003,1999.7,1998.4,14.505]
[1617365835381,0.46432401,1999.6,1998.5,2.0]
[1617365835775,0.4642793,1999.5,1998.5,2.0]
[1617365835981,0.4642793,1999.5,1999.3,2.90695]
[1617365836973,0.4643109,1999.6,1999.3,2.90695]
[1617365837874,2.90695,1999.4,1999.3,2.90695]
[1617365838274,0.4643109,1999.6,1999.3,2.90695]
[1617365838974,0.69646635,1999.8,1999.3,2.90695]
[1617365839176,0.46445909,1999.6,1999.3,2.90695]
[1617365839774,0.46445909,1999.6,1998.7,77.5368]
[1617365839974,0.46445909,1999.6,1999.5,2.90695]
[1617365840476,0.46450417,1999.7,1999.5,2.90695]
[1617365840877,4.3782755,1999.8,1998.7,77.5368]
[1617365841077,6.1048755,1999.8,1998.7,77.5368]
[1617365841282,0.46456772,1999.7,1998.7,77.5368]
[1617365841877,0.46456772,1999.7,1999.5,2.90695]
[1617365843882,2.90695,1999.6,1999.5,2.90695]
[1617365844083,3.37137715,1999.6,1999.5,2.90695]
[1617365844781,2.90695,1999.6,1999.5,2.90695]
[1617365845184,4.07168287,1999.6,1999.5,2.90695]
[1617365845383,1.16473287,1999.6,1999.5,2.90695]
[1617365845583,0.9320815,1999.6,1999.5,2.90695]
[1617365845984,1.63148963,1999.6,1999.5,2.90695]
[1617365846185,0.69940813,1999.6,1999.5,2.90695]
[1617365846385,0.46645598,1999.6,1999.5,2.90695]
[1617365846785,1.70518026,1999.7,1999.5,2.90695]
[1617365847186,0.69955772,1999.6,1999.5,2.90695]
[1617365847986,3.83926303,1999.6,1999.2,2.90695]
[1617365848386,0.93226128,1999.5,1999.2,2.90695]
[1617365848587,1.81503072,1999.5,1999.2,2.90695]
[1617365849202,0.88276944,1999.5,1999.2,2.90695]
[1617365849686,0.88275594,1999.4,1999.2,2.90695]
[1617365850286,1.81489531,1999.5,1999.2,2.90695]
[1617365850686,0.88274263,1999.5,1999.2,2.90695]
[1617365851687,1.81491296,1999.5,1999.2,2.90695]
[1617365851886,1.81491296,1999.5,1999.4,2.90695]
[1617365852287,0.88274263,1999.5,1999.4,2.90695]
[1617365854889,3.72270367,1999.6,1999.4,2.90695]
[1617365855291,3.72270367,1999.6,1998.4,14.505]
[1617365855492,5.24670367,1999.6,1998.4,14.505]
[1617365855893,0.93158418,1999.5,1999.0,2.90695]
[1617365856793,0.93137332,1999.4,1999.0,2.90695]
[1617365857997,2.90695,1999.1,1999.0,2.90695]
[1617365858814,76.0569,1999.0,1998.4,16.505]
[1617365859999,76.0569,1999.0,1998.9,17.01795]
[1617365860802,76.5224083,1999.0,1998.9,17.01795]
[1617365862005,75.5232083,1999.0,1998.9,17.01795]
[1617365863006,77.2281083,1999.0,1998.9,17.01795]
[1617365864206,75.0577,1999.0,1998.9,17.01795]
[1617365865207,105.0577,1999.0,1998.9,1.89595]